Cogmind - Beta 16.1 @@@ ROGUE MODE // 2026.04.27 @ 19:14:52 Player: AngelSpirit Result: Destroyed by Y-45 Defender with Heavy Assault Rifle Performance ------------- Evolutions (0) 0 Regions Visited (3) 600 Robots Destroyed (60) 300 Value Destroyed (1599) 1599 Prototype IDs (13) 260 Alien Tech Used (0) 0 Bonus (-129) -129 TOTAL SCORE: 2630 Bonus ------- Friendly Fire -129 Cogmind --------- Core Integrity 0/250 Matter 294/300 Energy 121/125 System Corruption 0% Temperature Cool (49) Movement Treading (160) Location -8/Recycling Parts ------- > --- POWER (1) -------- Light Ion Engine > --- PROPULSION (2) --- Spiked Treads Spiked Treads > --- UTILITY (2) ------ Large Storage Unit Makeshift Hacking Suite > --- WEAPON (2) ------- Subdweller Beam Cannon Slug Cannon > --- INVENTORY (15) --- Subdweller Power Source Compact Wheel Subdweller Monowheel Subdweller Optics Sensor Array Scrap Shield Makeshift System Shield Cobbler Unit Rainbow Chip Subdweller Laser Subdweller Machine Gun Subdweller Shrapnel Launcher Shrapnel Trap Peak State ------------ > --- POWER ------------ Light Ion Engine > --- PROPULSION ------- Spiked Treads Spiked Treads > --- UTILITY ---------- Large Storage Unit Makeshift Hacking Suite > --- WEAPON ----------- Subdweller Beam Cannon Slug Cannon > --- INVENTORY -------- Subdweller Power Source Compact Wheel Subdweller Monowheel Subdweller Optics Sensor Array Scrap Shield Makeshift System Shield Cobbler Unit Rainbow Chip Subdweller Laser Subdweller Machine Gun Subdweller Shrapnel Launcher Shrapnel Trap [Rating: 20] Favorites ----------- Power Subdweller Power Source Engine Subdweller Power Source Power Core Light Nuclear Core Propulsion Spiked Treads Treads Spiked Treads Wheel Wheel Utility Scrap Shield Device Seismic Detector Storage Large Storage Unit Hackware Makeshift Hacking Suite Protection Scrap Shield Weapon Subdweller Beam Cannon Energy Gun Subdweller Laser Energy Cannon Subdweller Beam Cannon Ballistic Gun Heavy Assault Rifle Ballistic Cannon Slug Cannon Launcher Grenade Launcher Special Weapon Mining Laser Impact Weapon Hammer Build | -11 -10 -10 -8 ------- Run | Yrd Mat Sub Rec Slots Evolved . | . . . . Power . | . . . . Propulsion . | . . . . Utility . | . . . . Weapon . | . . . . Parts Attached 45 | 7 13 24 1 Power 5 | 1 1 3 . Engine 4 | 1 . 3 . Core 1 | . 1 . . Reactor . | . . . . Propulsion 12 | 2 5 5 . Treads 9 | . 4 5 . Leg . | . . . . Wheel 3 | 2 1 . . Hover . | . . . . Flight . | . . . . Utility 10 | 2 2 5 1 Device 3 | 1 . 2 . Storage 2 | 1 1 . . Processor . | . . . . Hackware 1 | . . . 1 Protection 4 | . 1 3 . Artifact . | . . . . Weapon 18 | 2 5 11 . Energy Gun 1 | . . 1 . Energy Cannon 1 | . . 1 . Ballistic Gun 9 | 2 2 5 . Ballistic Cannon 3 | . . 3 . Launcher 2 | . 1 1 . Special Weapon 1 | . 1 . . Impact Weapon 1 | . 1 . . Slashing Weapon . | . . . . Piercing Weapon . | . . . . Special Melee Weapon . | . . . . Unidentified Prototypes . | . . . . Parts Lost 4 | . . 4 . Power . | . . . . Propulsion 2 | . . 2 . Utility . | . . . . Weapon 2 | . . 2 . Highest Loss Streak 2 | . . 2 . To Critical Strikes . | . . . . Average Backups 7 | 2 12 6 12 Power . | . 1 . 1 Propulsion 1 | 1 4 . 2 Utility 2 | . 2 2 6 Weapon 2 | . 2 2 3 Tool/Special . | . . . . Unused Backups 20 | . 1 12 7 Power 1 | . . 1 . Propulsion 6 | . 1 4 1 Utility 3 | . . . 3 Weapon 9 | . . 6 3 Tool/Special 1 | . . 1 . Average Slot Usage (%) 89 | . 99 86 100 Engine 11 | . 1 13 14 Core 2 | . 12 . . Treads 23 | . 1 26 28 Wheel 4 | . 26 1 . Device 5 | . 13 3 4 Storage 6 | . 14 4 14 Protection 6 | . . 7 . Energy Cannon 9 | . . 10 14 Ballistic Gun 8 | . 27 5 . Ballistic Cannon 10 | . . 11 14 Peak Build Rating 20 | 7 12 18 20 Average Rating 14 | 5 10 15 19 On Entrance 9 | . 7 12 17 Avg Prop Armor Cover (%) . | . . . . Naked Turns . | . . . . Heaviest Build 41 | 13 32 41 39 Greatest Support 40 | 26 40 40 40 Greatest Overweight (x) 1 | . 1 1 . Average Overweight (x) . | . . . . Largest Inventory Capacity 15 | 8 15 15 15 Average Capacity 9 | 7 13 8 15 Most Carried 15 | 6 15 15 15 Average Carried 8 | 2 12 7 15 Final Capacity 15 | 8 15 15 15 Final Carried 15 | 6 15 15 15 Class Distribution -------------------- 52% | Mutant 43% | Subdweller-Mutant 3% | Derelict-Mutant Dominant Class ---------------- Mutant | -10/Materials Subdweller-Mutant | -10/Subcaves Derelict-Mutant | -8/Recycling Resources | -11 -10 -10 -8 ----------- Run | Yrd Mat Sub Rec Matter Collected 3184 | 285 698 1919 282 Remotely . | . . . . Salvage Created 1817 | 93 665 1004 55 Parts 135 | 11 57 62 5 Haulers Intercepted 2 | . 2 . . Recyclers Shooed . | . . . . Parts Field Recycled . | . . . . Retrieved Matter . | . . . . Parts Self-Destructed 15 | . . 15 . Prevented . | . . . . Parts Restored . | . . . . Kills | -11 -10 -10 -8 ------- Run | Yrd Mat Sub Rec Combat Hostiles Destroyed 45 | . 19 25 1 Melee 1 | . 1 . . Guns 24 | . 11 13 . Cannons 7 | . . 6 1 AOE 10 | . 6 4 . Classes Destroyed 12 | 1 6 4 1 Worker 1 | . 1 . . Tunneler 6 | 4 2 . . Hauler 2 | . 2 . . Operator 2 | . 2 . . Turret 1 | . . 1 . Watcher 3 | . 3 . . Swarmer 13 | . 9 4 . Grunt 12 | . 10 2 . Sentry 1 | . . . 1 Artisan 3 | . . 3 . Cobbler 1 | . . 1 . Subdweller 19 | . . 19 . Best Kill Streak 7 | 3 7 4 1 Combat Bots Only 6 | . 6 4 1 Max Kills in Single Turn 4 | 1 3 4 1 Gunslinging . | . . . . Exploded 4 | . 2 4 . Melee 1 | . 1 . . Uniques/NPCs Destroyed . | . . . . Combat | -11 -10 -10 -8 -------- Run | Yrd Mat Sub Rec Hostile Shots Fired 194 | . 41 149 4 Missed 61 | . 13 48 . Hits 133 | . 28 101 4 Projectile 133 | . 28 101 4 Critical Strikes 2 | . . 2 . Damage Taken 2458 | . 302 2101 55 Core 256 | . 7 208 41 Absorbed by Shields . | . . . . Core Remaining (%) 100 | 100 . . . Volleys Fired 248 | 14 49 183 2 Largest 2 | 2 2 2 2 Hottest 120 | 40 100 120 120 Shots Fired 416 | 28 91 293 4 Gun 252 | 28 83 141 . Cannon 153 | . . 149 4 Launcher 9 | . 6 3 . Special 2 | . 2 . . Kinetic 345 | 28 83 232 2 Thermal 65 | . 2 61 2 Explosive 6 | . 6 . . Electromagnetic . | . . . . Robot Hit Streak 31 | 4 8 31 6 Robot Miss Streak 5 | 3 5 3 1 Penetration Max . | . . . . Secondary Targets 1 | . . 1 . Max Gunslinging Chain 1 | . . 1 . Shots Hit Robots 228 | 18 41 167 2 Core Hits 88 | 4 31 52 1 Critical Kills 7 | . . 7 . Critical Parts Destroyed . | . . . . Critical Strikes 10 | . . 10 . Meltdown 2 | . . 2 . Destroy 8 | . . 8 . Melee Attacks 2 | . 2 . . Impact 2 | . 2 . . Slashing . | . . . . Piercing . | . . . . Sneak Attacks . | . . . . Combat Hostiles . | . . . . Follow-up Attacks . | . . . . Damage Inflicted 5084 | 247 1172 3614 51 Guns 2600 | 247 584 1769 . Cannons 1614 | . . 1563 51 Explosions 802 | . 520 282 . Melee 68 | . 68 . . Ramming . | . . . . Kinetic 3726 | 247 584 2895 . Thermal 895 | . 125 719 51 Explosive 395 | . 395 . . Electromagnetic . | . . . . Impact 68 | . 68 . . Slashing . | . . . . Piercing . | . . . . Highest Corruption . | . . . . Average Corruption . | . . . . Corruption Purged . | . . . . Corruption Blocked . | . . . . Overload Shots . | . . . . Overflow Damage 94 | . 56 38 . Projectiles 38 | . . 38 . Explosions 49 | . 49 . . Melee 7 | . 7 . . Knockbacks 8 | . . 8 . Impact . | . . . . Kinetic 8 | . . 8 . Secondary . | . . . . Self-Inflicted Damage 74 | . 29 45 . Shots 2 | . 1 1 . Rammed . | . . . . Targets Rammed . | . . . . Kicked . | . . . . Crushed . | . . . . Highest Temperature 60 | . 56 1 60 Average Temperature 16 | . 14 1 31 Received Heat Transfer 453 | . 93 342 18 Siege Activations . | . . . . Martial Activations . | . . . . Shielding Activations . | . . . . Robots Disrupted . | . . . . Combat Hostiles . | . . . . Robots Corrupted 1 | . 1 . . Combat Hostiles 1 | . 1 . . Parts Fried . | . . . . Impact Corruptions 1 | . 1 . . Robots Melted 2 | . . 2 . Combat Hostiles 2 | . . 2 . Parts Melted 2 | . . 2 . Heat Transferred 1187 | . 150 963 74 Parts Sabotaged . | . . . . Parts Stolen . | . . . . Parts Stripped . | . . . . Power Chain Reactions . | . . . . Alert | -11 -10 -10 -8 ------- Run | Yrd Mat Sub Rec Maximum Alert Level 1 | . 1 . . Low Security (%) 52 | 100 33 . 100 Level 1 47 | . 66 . . Level 2 . | . . . . Level 3 . | . . . . Level 4 . | . . . . Level 5 . | . . . . High Security . | . . . . Max Security . | . . . . Peak Influence 327 | 10 327 . 50 Initial 48 | . . . 48 Average 158 | . 214 . 17 Influence Increases 1090 | 20 793 150 127 Destroy 0b10 Robot/C 540 | . 380 140 20 Destroy 0b10 Robot/NC 70 | 20 50 . . Destroy Leader 100 | . 90 10 . Trap Triggered on 0b10 10 | . 10 . . Successful Hack 62 | . 47 . 15 Select Force Hacks 150 | . 60 . 90 Disable Machine 90 | . 90 . . Destroy Structure 53 | . 51 . 2 Lose Combat Pursuer 15 | . 15 . . Influence Decreases 1049 | 20 506 337 186 Entered New Map 191 | . . 139 52 Time Decay 850 | 20 506 190 134 Lost Part 8 | . . 8 . Squads Dispatched 5 | . 5 . . Investigation 4 | . 4 . . Extermination . | . . . . Reinforcement 1 | . 1 . . Assault . | . . . . Garrison . | . . . . Intercept . | . . . . Searches Triggered . | . . . . Construction Impeded . | . . . . Haulers Reinforced . | . . . . Active Scanning Responses . | . . . . Cargo Convoy Interrupts . | . . . . Stealth | -11 -10 -10 -8 --------- Run | Yrd Mat Sub Rec Distress Signals 2 | . 2 . . Communications Jammed . | . . . . Distress Signals . | . . . . Times Spotted 56 | . 25 30 1 Peak Tracking Total 7 | . 3 7 1 Tactical Retreats 2 | . 1 1 . Traps | -11 -10 -10 -8 ------- Run | Yrd Mat Sub Rec Traps Triggered 2 | . . 2 . Indirectly . | . . . . Trap Hack Attempts . | . . . . Triggered . | . . . . Disarmed . | . . . . Reprogrammed 5 | . 5 . . Reused 1 | . 1 . . Traps Extracted . | . . . . Installed 1 | . . 1 . Triggered 1 | . 1 . . Most Traps Carried 2 | . . 2 1 Machines | -11 -10 -10 -8 ---------- Run | Yrd Mat Sub Rec Machines Disabled 12 | . 7 5 . Max in Single Turn 4 | . 3 4 . Machines Repaired . | . . . . Machines Dismantled . | . . . . Machines Sabotaged . | . . . . Overloaded Fab Kills . | . . . . Hacking | -11 -10 -10 -8 --------- Run | Yrd Mat Sub Rec Machines Accessed 22 | . 10 4 8 Terminals 11 | . 7 . 4 Fabricators . | . . . . Repair Stations 1 | . 1 . . Recycling Units 6 | . 2 . 4 Scanalyzers . | . . . . Garrison Access . | . . . . Total Hacks 75 | . 38 8 29 Successful 44 | . 19 8 17 Failed 31 | . 19 . 12 Catastrophic 1 | . 1 . . Database Lockouts . | . . . . Manual 43 | . 23 . 20 Terminals 40 | . 26 . 14 Fabricators . | . . . . Repair Stations 4 | . 4 . . Recycling Units 23 | . 8 . 15 Scanalyzers . | . . . . Garrison Access . | . . . . Terminal Hacks 15 | . 6 8 1 Record 5 | . . 5 . Part Schematic 1 | . . . 1 Robot Schematic 1 | . 1 . . Robot Analysis 1 | . 1 . . Open Door 1 | . . 1 . Locate Traps 3 | . 3 . . Reprogram Traps 1 | . 1 . . Proto ID Catalog 1 | . . 1 . Release Object 1 | . . 1 . Fabricator Hacks . | . . . . Repair Station Hacks 2 | . 2 . . Refit 2 | . 2 . . Recycling Unit Hacks 6 | . 2 . 4 Retrieve Components 6 | . 2 . 4 Scanalyzer . | . . . . Garrison Access Hacks . | . . . . Unauthorized Hacks 21 | . 9 . 12 Terminals 14 | . 7 . 7 Botnet 5 | . 1 . 4 Operators 1 | . 1 . . Skim 8 | . 5 . 3 Fabricators . | . . . . Repair Stations . | . . . . Recycling Units 7 | . 2 . 5 Reject 1 | . . . 1 Mask 1 | . . . 1 Tunnel 5 | . 2 . 3 Scanalyzers . | . . . . Garrison Access . | . . . . Data Cores Recovered 1 | . 1 . . Used 1 | . 1 . . Hacking Detections 15 | . 8 . 7 Full Trace Events 3 | . 2 . 1 Feedback Events . | . . . . Feedback Blocked . | . . . . Robot Schematics Acquired 1 | . 1 . . Robots Built . | . . . . Authchips . | . . . . Time . | . . . . Total Robot Build Rating . | . . . . Part Schematics Acquired 1 | . . . 1 Parts Built . | . . . . Authchips . | . . . . Time . | . . . . Total Part Build Rating . | . . . . Part Studies Acquired . | . . . . Parts Repaired . | . . . . Time . | . . . . Parts Recycled . | . . . . Recycled Matter . | . . . . Retrieved Matter . | . . . . Retrieved Components 17 | . 12 . 5 Parts Scanalyzed . | . . . . Part Schematics Acquired . | . . . . Parts Damaged . | . . . . Bothacking | -11 -10 -10 -8 ------------ Run | Yrd Mat Sub Rec Used RIF Installer . | . . . . Robots Hacked . | . . . . Non-combat . | . . . . Combat . | . . . . Robot Hacks Applied . | . . . . Relay Couplers Released . | . . . . Fabnet Peak Effective % . | . . . . Robots Rewired . | . . . . Allies Hacked . | . . . . Hacks Repelled . | . . . . Allies | -11 -10 -10 -8 -------- Run | Yrd Mat Sub Rec Total Allies . | . . . . Largest Group . | . . . . Highest-Rated Group . | . . . . Highest-Rated Ally . | . . . . Total Orders . | . . . . Ally Attacks . | . . . . Total Damage . | . . . . Kills . | . . . . Allies Corrupted . | . . . . Allies Melted . | . . . . Intel | -11 -10 -10 -8 ------- Run | Yrd Mat Sub Rec Active Infowar (turns) 2782 | 18 1452 1171 141 Sensors 1293 | . . 1152 141 Seismic 1489 | 18 1452 19 . Robot Analysis Total 1 | . 1 . . Derelict Logs Recovered 1 | . . 1 . Drone Launches . | . . . . Drone Recoveries . | . . . . Exploration | -11 -10 -10 -8 ------------- Run | Yrd Mat Sub Rec Turns Passed 10717 | 117 1497 8631 472 Spaces Moved 5694 | 66 1044 4301 283 Core 2 | 2 . . . Treads 4323 | . 11 4029 283 Legs . | . . . . Wheels 1369 | 64 1033 272 . Hover . | . . . . Flight . | . . . . Fastest Speed 50 | 50 90 105 160 Average Speed 147 | 88 103 158 160 Slowest Speed 260 | 90 160 260 160 Overloaded Moves . | . . . . Propulsion Burnouts . | . . . . Robots Hopped . | . . . . Potential Cave-ins . | . . . . Cave-ins Triggered . | . . . . Exploration Rate (%) 68 | 3 99 98 74 Regions Visited 3 Branch Regions 2 Pre-discovered Areas 6 | . 3 . 3 Known Exits Taken 1 | . . 1 . Unknown Exits Taken 2 | 1 1 . . Scrap Searched 15 | . . 15 . Spaces Dug 16 | . . 16 . Terrain Destroyed 129 | . 55 72 2 Melee . | . . . . Projectile 39 | . . 37 2 AOE 90 | . 55 35 . Terrain Rammed . | . . . . Walls Destroyed . | . . . . Machines Disabled . | . . . . Actions | -11 -10 -10 -8 --------- Run | Yrd Mat Sub Rec Total 7581 | 93 1360 5830 298 Wait 1372 | 1 208 1151 12 Move 5691 | 65 1043 4300 283 Hop . | . . . . Pick Up 74 | 6 13 55 . Fast Attach 17 | 7 2 8 . Attach 14 | . . 14 . Detach 3 | . 2 1 . Swap 60 | . 30 29 1 Drop 77 | . 11 66 . Fire 248 | 14 49 183 2 Melee 2 | . 2 . . Ram . | . . . . Kick . | . . . . Crush . | . . . . Escape Stasis . | . . . . Rewire . | . . . . Trap 1 | . . 1 . Miscellaneous 22 | . . 22 . Route ------- -11/Scrapyard -10/Materials (discovered 6 exits: *Mat x3 / [*Min x2] / *Sub) -10/Subcaves (discovered 3 exits: *Mat x2 / *Rec) -8/Recycling (discovered 2 exits: *Fac / Scr) History --------- Turn | Location | Event 6 | -11/Scrapyard | Discovered new exit (range 15) 118 | -11/Scrapyard | Entered Materials 156 | -10/Materials | Discovered new exit (range 9) 330 | -10/Materials | Discovered new exit (range 4) 434 | -10/Materials | Discovered new exit (range 9) 549 | -10/Materials | Discovered new exit (range 12) 572 | -10/Materials | Build established: Mutant 652 | -10/Materials | Discovered new exit (range 12) 853 | -10/Materials | Discovered new exit (range 8) 867 | -10/Materials | Learned location of 2 exits from Subcaves 922 | -10/Materials | Learned location of 1 exit from Recycling 935 | -10/Materials | Learned 4 Subcaves zone layouts 936 | -10/Materials | Learned 2 Mines zone layouts 937 | -10/Materials | Identified exit to Materials 938 | -10/Materials | Learned location of 1 exit from Recycling 939 | -10/Materials | Learned location of 1 exit from Storage 940 | -10/Materials | Learned 2 Mines zone layouts 951 | -10/Materials | Learned 2 Mines zone layouts 970 | -10/Materials | Learned location of Mines (-10) 1018 | -10/Materials | Derelicts attacked the area 1615 | -10/Materials | Entered Subcaves 1616 | -10/Subcaves | Identified exit to Materials 1617 | -10/Subcaves | Identified exit to Recycling 2015 | -10/Subcaves | Core integrity fell below 50% 2055 | -10/Subcaves | Shifting Twisted Machinery released Scrap Shield 2122 | -10/Subcaves | Shifting Twisted Machinery released Sub. Power Source 2149 | -10/Subcaves | Disturbed a concealed Subdweller 2406 | -10/Subcaves | Build established: Subdweller-Mutant 3335 | -10/Subcaves | Learned Materials trap positions 3374 | -10/Subcaves | Disturbed a concealed Subdweller 3375 | -10/Subcaves | Disturbed a concealed Subdweller 3411 | -10/Subcaves | Disturbed a concealed Subdweller 3632 | -10/Subcaves | A swath of the cavern ceiling suddenly collapsed 4204 | -10/Subcaves | Shifting Twisted Machinery released Riot Gun 4224 | -10/Subcaves | Shifting Twisted Machinery released Piercing Trap 4444 | -10/Subcaves | A swath of the cavern ceiling suddenly collapsed 4765 | -10/Subcaves | Visited Clippyterm 4886 | -10/Subcaves | Visited 4L-MR0's lab 6134 | -10/Subcaves | Ambushed by angry Subdweller bent on revenge 6171 | -10/Subcaves | Shifting Twisted Machinery released Riot Gun 6199 | -10/Subcaves | Shifting Twisted Machinery released Battle Rifle 6535 | -10/Subcaves | Core integrity fell below 20% 6536 | -10/Subcaves | Ambushed by Subdweller buried in earth 6923 | -10/Subcaves | Found Rainbow Chip 7051 | -10/Subcaves | Build established: Mutant 10246 | -10/Subcaves | Entered Recycling 10247 | -8/Recycling | Identified exit to Scraptown 10247 | -8/Recycling | Identified exit to Factory 10674 | -8/Recycling | Build established: Derelict-Mutant 10718 | -8/Recycling | Destroyed by Y-45 Defender with Heavy Assault Rifle Last Messages --------------- >>Trojan(Botnet) Trojan loaded successfully. Testing... Terminal linked with 2 systems. Awaiting botnet instructions. 10684_ Connecting with Terminal... >>Trojan(Skim) Trojan loaded successfully. Testing... Terminal linked with 2 systems. Please expand to 2 more systems! >>Trojan(Botnet) Trojan loaded successfully. Testing... Terminal linked with 3 systems. Awaiting botnet instructions. 10687_ Connecting with Recycling Unit... >>Force(Tunnel) DISCOVERED[-4/Factory] 10714_ Y-45 Defender springs to life. Map ----- +----------------------------------------------------+ | | | | | | | | | | | | | ????????????????????????????????????????? | | ??????????????????????????????????>?????? | | ????????????????????????????????????????? | | ????????????????????????????????????????? | | ????????????????????????????????????????? | | ????????????????????????????????????????? | | ????????????????????????????????????????? | | ????????????????????????????????????????? | | ????????????????????????????????????????? | | ????????????????????????????????????????? | | ????????????????????????????????????????? | | ???????#####????????????????????????????? | | ??######"T"###??????????????????????????? | | ### T #??????????????????????????? | | #"" """ #???????#??????????????????? | | #"Y """ #?????? #?????##???????????? | | #"" """ ####### ###; ????????????? | | ### """ # +???????????????? | | ??# # u#???????????????? | | ??##"T"#+##### @ #???????????????? | | ???##### Y +???????????????? | | ???????# #####[[[### ####???????????????? | | ???????# #???#[[[#??????????????????????? | | ???????# #???#########??????????????????? | | ?????### ####### #??????????????????? | | ?????# #??????????????????? | | ?????# < #??????????????????? | | ?????# #??????????????????? | | ?????########### #??????????????????? | | ???????????????## #######?????????????? | | ????????????????# #?#"""#?????????????? | | ???????########## ###"Y"####??????????? | | ???????# =! # # !!= #??????????? | | ???????# # # """ #??????????? | | ???????# ! + + """ #??????????? | | ???????#= ! # # """ #??????????? | | ???????# # # #??????????? | | ???????# % + # """ #??????????? | | ???????# # # """ #??????????? | | ???????# ! # # """ #??????????? | | ???????# ] % # # #??????????? | | ???????########## #########???????????? | | ????????????????# ""#?????????????????? | | ???##???????????# ]Y"#?????????????????? | +----------------------------------------------------+ Best States ------------- Heat Dissipation 25 Energy Generation 15 Energy Capacity 200 Matter Stores 300 Matter Capacity 300 Sight Range 16 Robot Scan Range 14 Terrain Scan Density 10 Armor Coverage 800 Evasion (%) 42 Recoil Reduction 2 Offensive Hacking 11 Item Schematics ----------------- Cryofiber Web | -8/Recycling | Hacked Robot Schematics ------------------ M-13 Machinist | -10/Materials | Hacked Fabricated ------------ Nothing Repaired ---------- Nothing Studied --------- None Alien Tech Used ----------------- None Achievements -------------- None Challenges ------------ None Game ------ Seed PotentialHugeChaingun Manual? 0 Play Time 00:54:25 Cumulative 749.2 hours Start 2026.04.27 @ 18:21:49 End 2026.04.27 @ 19:14:52 Sessions 1 Manual Loads 0 Difficulty Rogue Special Mode None Game No. 223 Rogue 223 Adventurer 0 Explorer 0 Win Type - Total 28 Types 10/3/7/1/1/0/2/1/1/2 Lore% 95 Gallery% 87 Achievement% 81 Wizard Run 0 Options --------- Layout 1 ASCII 0 Keyboard 0 Movement Mouse Keybinds 0 Fullscreen 2 Font 32/SmallcapsGlow Map View 50x35 Zoom Use 0% Tactical HUD 1 Map Filters NONE Filters NONE Steam 1 RUN: 89306195-249d-47aa-bc99-5b456315e09d